fUST/lending_fUST_20250302
["ID","MTS","AMOUNT","RATE_DAILY","PERIOD"]
[354972930,1740851448478,-500.0,0.00025828,2]
[354972932,1740851448487,-500.0,0.00025828,2]
[354972934,1740851448497,-500.0,0.00025828,2]
[354972936,1740851448507,-500.0,0.00025828,2]
[354972938,1740851448518,-9182.11,0.00025828,2]
[354972940,1740851448528,-507.07,0.00025828,2]
[354972942,1740851448539,-500.0,0.00025828,2]
[354972944,1740851448556,-500.0,0.00025828,2]
[354972946,1740851448565,-756.9,0.00025828,2]
[354972948,1740851448575,-1044.97,0.00025828,2]
[354972950,1740851448584,-500.0,0.00025828,2]
[354972952,1740851448593,-500.0,0.00025828,2]
[354972954,1740851448603,-2618.4,0.00025828,2]
[354972955,1740851448612,-5139.77,0.00025828,2]
[354972957,1740851448622,-1126.45,0.00025828,2]
[354972959,1740851448631,-500.0,0.00025828,2]
[354972961,1740851448641,-799.32,0.00025828,2]
[354972963,1740851448650,-500.0,0.00025828,2]
[354972965,1740851448660,-602.56,0.00025828,2]
[354972967,1740851448669,-500.0,0.00025828,2]
[354972969,1740851448679,-500.0,0.00025828,2]
[354972971,1740851448690,-997.53,0.00025828,2]
[354972973,1740851448699,-500.0,0.00025828,2]
[354972975,1740851448708,-2604.62,0.00025828,2]
[354972977,1740851448718,-500.0,0.00025828,2]
[354972979,1740851448729,-1957.23,0.00025828,2]
[354972981,1740851448738,-1524.17,0.00025828,2]
[354972983,1740851448748,-500.0,0.00025828,2]
[354972986,1740851448760,-465.09879771,0.00025828,2]
[354972987,1740851448770,-445.23001802,0.00025828,2]
[354972989,1740851448779,-500.0,0.00025828,2]
[354972991,1740851448789,-500.0,0.00025828,2]
[354972993,1740851448799,-1645.6,0.00025828,2]
[354972994,1740851448810,-1899.84,0.00025828,2]
[354972995,1740851448819,-297.26769267,0.00025851,2]
[354972996,1740851448829,-151.0,0.000259,14]
[354972997,1740851448839,-689.31695158,0.000259,4]
[354972998,1740851448851,-297.26769267,0.00025923,2]
[354972999,1740851448861,-7857.79836975,0.00025924,2]
[354973000,1740851448870,-465.15062359,0.00025987,2]
[354973001,1740851448880,-151.0,0.00026,16]
[354973002,1740851448891,-1004.10533762,0.00026,120]
[354973003,1740851448902,-151.0,0.00026,20]
[354973004,1740851448911,-4000.0,0.00026022,2]
[354973005,1740851448921,-479.25,0.00026022,2]
[354973006,1740851448932,-4000.0,0.00026022,2]
[354973007,1740851448941,-4000.0,0.00026022,2]
[354973008,1740851448951,-4000.0,0.00026022,2]
[354973009,1740851448964,-4000.0,0.00026022,2]
[354973010,1740851448977,-185491.97,0.00026022,2]
[354973011,1740851448987,-3897.56,0.00026022,2]
[354973012,1740851448996,-10587.15,0.00026022,2]
[354973013,1740851449006,-2108.75,0.00026022,2]
[354973014,1740851449016,-5283.87,0.00026022,2]
[354973015,1740851449025,-2569.52,0.00026022,2]
[354973016,1740851449035,-500.0,0.00026022,2]
[354973017,1740851449044,-534.07,0.00026022,2]
[354973018,1740851449054,-1135.64,0.00026022,2]
[354973019,1740851449064,-1617.83,0.00026022,2]
[354973020,1740851449073,-812.76,0.00026022,2]
[354973021,1740851449083,-173.954304,0.00026022,7]
[354973023,1740851449092,-500.0,0.00026022,2]
[354973025,1740851449102,-151.0,0.00026022,7]
[354973027,1740851449113,-158.079616,0.00026022,7]
[354973029,1740851449124,-14442.94,0.00026022,2]
[354973031,1740851449134,-438.36809,0.00026022,7]
[354973033,1740851449144,-151.0,0.00026022,7]
[354973035,1740851449154,-438.36809,0.00026022,7]
[354973036,1740851449163,-1600.29,0.00026022,2]
[354973038,1740851449173,-500.0,0.00026022,2]
[354973041,1740851449183,-500.0,0.00026023,2]
[354973043,1740851449195,-590.91949038,0.00026023,2]
[354973044,1740851449204,-661.05,0.00026023,2]
[354973046,1740851449214,-500.0,0.00026023,2]
[354973048,1740851449225,-1564.51,0.00026023,2]
[354973050,1740851449235,-500.0,0.00026023,2]
[354973053,1740851449245,-500.0,0.00026023,2]
[354973055,1740851449255,-500.0,0.00026023,2]
[354973057,1740851449265,-500.0,0.00026023,2]
[354973059,1740851449275,-500.0,0.00026023,2]
[354973060,1740851449286,-292.98527967,0.00026023,2]
[354973062,1740851449295,-500.0,0.00026023,2]
[354973064,1740851449305,-500.0,0.00026023,2]
[354973066,1740851449315,-500.0,0.00026023,2]
[354973068,1740851449324,-500.0,0.00026023,2]
[354973070,1740851449334,-500.0,0.00026023,2]
[354973072,1740851449344,-500.0,0.00026023,2]
[354973074,1740851449353,-500.0,0.00026023,2]
[354973076,1740851449363,-500.0,0.00026023,2]
[354973078,1740851449373,-503.43214631,0.00026023,2]
[354973080,1740851449382,-505.53,0.00026023,2]
[354973082,1740851449392,-831.08,0.00026023,2]
[354973084,1740851449401,-636.51,0.00026023,2]
[354973086,1740851449411,-527.84,0.00026023,2]
[354973088,1740851449420,-974.98,0.00026023,2]
[354973090,1740851449430,-500.0,0.00026023,2]
[354973092,1740851449439,-500.0,0.00026023,2]
[354973094,1740851449449,-500.0,0.00026023,2]
[354973096,1740851449458,-500.0,0.00026023,2]
[354973098,1740851449467,-500.0,0.00026023,2]
[354973100,1740851449477,-500.0,0.00026023,2]
[354973102,1740851449486,-500.0,0.00026023,2]
[354973103,1740851449496,-500.0,0.00026023,2]
[354973105,1740851449505,-571.37,0.00026023,2]
[354973107,1740851449515,-484.52555655,0.00026023,2]
[354973109,1740851449524,-500.0,0.00026023,2]
[354973111,1740851449533,-500.0,0.00026023,2]
[354973113,1740851449543,-500.0,0.00026023,2]
[354973115,1740851449552,-500.0,0.00026023,2]
[354973117,1740851449561,-500.0,0.00026023,2]
[354973119,1740851449571,-500.0,0.00026023,2]
[354973121,1740851449581,-500.0,0.00026023,2]
[354973123,1740851449591,-500.0,0.00026023,2]
[354973125,1740851449601,-500.0,0.00026023,2]
[354973127,1740851449611,-608.93694024,0.00026023,2]
[354973129,1740851449620,-817.37,0.00026023,2]
[354973132,1740851449631,-500.0,0.00026023,2]
[354973134,1740851449640,-500.0,0.00026023,2]
[354973136,1740851449650,-500.0,0.00026023,2]
[354973138,1740851449659,-500.0,0.00026023,2]
[354973139,1740851449669,-500.0,0.00026023,2]
[354973141,1740851449680,-500.0,0.00026023,2]
[354973143,1740851449690,-500.0,0.00026023,2]
[354973145,1740851449699,-500.0,0.00026023,2]
[354973147,1740851449710,-297.94138301,0.00026023,2]
[354973150,1740851449720,-500.0,0.00026023,2]
[354973151,1740851449731,-500.0,0.00026023,2]
[354973153,1740851449747,-500.0,0.00026023,2]
[354973156,1740851449757,-500.0,0.00026023,2]
[354973158,1740851449767,-500.0,0.00026023,2]
[354973160,1740851449777,-500.0,0.00026023,2]
[354973162,1740851449787,-500.0,0.00026023,2]
[354973164,1740851449796,-579.27,0.00026023,2]
[354973166,1740851449805,-500.0,0.00026023,2]
[354973167,1740851449815,-500.0,0.00026023,2]
[354973169,1740851449824,-500.0,0.00026023,2]
[354973171,1740851449834,-500.0,0.00026023,2]
[354973173,1740851449843,-500.0,0.00026023,2]
[354973175,1740851449856,-500.0,0.00026023,2]
[354973177,1740851449865,-500.0,0.00026023,2]
[354973179,1740851449875,-500.0,0.00026023,2]
[354973181,1740851449884,-777.48,0.00026023,2]
[354973183,1740851449894,-216.40643473,0.00026023,2]
[354973185,1740851449903,-500.0,0.00026023,2]
[354973187,1740851449912,-500.0,0.00026023,2]
[354973189,1740851449922,-500.0,0.00026023,2]
[354973191,1740851449932,-931.64,0.00026023,2]
[354973193,1740851449941,-500.0,0.00026023,2]
[354973195,1740851449951,-500.0,0.00026023,2]
[354973197,1740851449960,-500.0,0.00026023,2]
[354973198,1740851449970,-1319.92,0.00026023,2]
[354973199,1740851449980,-500.0,0.00026023,2]
[354973200,1740851449990,-500.0,0.00026023,2]
[354973201,1740851450003,-500.0,0.00026023,2]
[354973202,1740851450013,-500.0,0.00026023,2]
[354973203,1740851450022,-1361.06,0.00026023,2]
[354973204,1740851450032,-500.0,0.00026023,2]
[354973205,1740851450041,-500.0,0.00026023,2]
[354973206,1740851450051,-500.0,0.00026023,2]
[354973207,1740851450060,-914.49,0.00026023,2]
[354973208,1740851450070,-469.46315389,0.00026023,2]
[354973209,1740851450079,-1008.64,0.00026023,2]
[354973210,1740851450089,-500.0,0.00026023,2]
[354973211,1740851450098,-500.0,0.00026023,2]
[354973212,1740851450107,-294.04671289,0.00026023,2]
[354973213,1740851450117,-500.0,0.00026023,2]
[354973214,1740851450127,-500.0,0.00026023,2]
[354973215,1740851450136,-500.0,0.00026023,2]
[354973216,1740851450146,-500.0,0.00026023,2]
[354973217,1740851450155,-500.0,0.00026023,2]
[354973218,1740851450165,-500.0,0.00026023,2]
[354973219,1740851450174,-500.0,0.00026023,2]
[354973220,1740851450185,-500.0,0.00026023,2]
[354973221,1740851450194,-884.64,0.00026023,2]
[354973222,1740851450203,-494.63397292,0.00026023,2]
[354973223,1740851450213,-500.0,0.00026023,2]
[354973224,1740851450225,-1657.97,0.00026023,2]
[354973225,1740851450235,-555.96,0.00026023,2]
[354973226,1740851450244,-723.51,0.00026023,2]
[354973227,1740851450253,-500.0,0.00026023,2]
[354973228,1740851450263,-500.0,0.00026023,2]
[354973229,1740851450272,-500.0,0.00026023,2]
[354973230,1740851450282,-500.0,0.00026023,2]
[354973231,1740851450292,-500.0,0.00026023,2]
[354973232,1740851450302,-503.38725626,0.00026023,2]
[354973233,1740851450311,-500.0,0.00026023,2]
[354973234,1740851450321,-500.0,0.00026023,2]
[354973235,1740851450330,-562.23,0.00026023,2]
[354973236,1740851450340,-1145.82,0.00026023,2]
[354973237,1740851450350,-1262.77,0.00026023,2]
[354973238,1740851450359,-500.0,0.00026023,2]
[354973239,1740851450369,-500.0,0.00026023,2]
[354973240,1740851450379,-522.13,0.00026023,2]
[354973241,1740851450389,-435.64789553,0.00026023,2]
[354973242,1740851450398,-500.0,0.00026023,2]
[354973243,1740851450407,-619.96,0.00026023,2]
[354973244,1740851450416,-500.0,0.00026023,2]
[354973245,1740851450426,-1837.38,0.00026023,2]
[354973246,1740851450436,-1385.03,0.00026023,2]
[354973247,1740851450445,-500.0,0.00026023,2]
[354973248,1740851450454,-500.0,0.00026023,2]
[354973249,1740851450464,-1657.86,0.00026023,2]
[354973250,1740851450473,-500.0,0.00026023,2]
[354973251,1740851450483,-500.0,0.00026023,2]
[354973252,1740851450492,-500.0,0.00026023,2]
[354973253,1740851450501,-1085.37,0.00026023,2]
[354973254,1740851450511,-659.82,0.00026023,2]
[354973255,1740851450520,-629.88,0.00026023,2]
[354973256,1740851450530,-313.07920656,0.00026023,2]
[354973257,1740851450540,-500.0,0.00026023,2]
[354973258,1740851450549,-508.53943739,0.00026023,2]
[354973259,1740851450559,-767.12,0.00026023,2]
[354973260,1740851450568,-510.81,0.00026023,2]
[354973261,1740851450578,-500.0,0.00026023,2]
[354973262,1740851450587,-682.79,0.00026023,2]
[354973263,1740851450597,-500.0,0.00026023,2]
[354973264,1740851450606,-1000.0,0.00026023,2]
[354973265,1740851450616,-151.0,0.00026023,7]
[354973266,1740851450626,-500.0,0.00026023,2]
[354973267,1740851450635,-500.0,0.00026023,2]
[354973268,1740851450645,-500.0,0.00026023,2]
[354973269,1740851450655,-293.488504,0.00026023,7]
[354973270,1740851450664,-500.0,0.00026023,2]
[354973271,1740851450673,-293.488504,0.00026023,7]
[354973272,1740851450683,-165.029516,0.00026023,7]
[354973273,1740851450693,-500.0,0.00026023,2]
[354973274,1740851450702,-165.029516,0.00026023,7]
[354973275,1740851450712,-733.96,0.00026023,2]
[354973276,1740851450721,-500.0,0.00026023,2]
[354973277,1740851450730,-500.0,0.00026023,2]
[354973278,1740851450739,-460.22798626,0.00026023,2]
[354973279,1740851450748,-500.0,0.00026023,2]
[354973280,1740851450758,-500.0,0.00026023,2]
[354973281,1740851450767,-500.0,0.00026023,2]
[354973282,1740851450776,-500.0,0.00026023,2]
[354973283,1740851450786,-500.0,0.00026023,2]
[354973284,1740851450795,-721.31,0.00026023,2]
[354973285,1740851450805,-646.35,0.00026023,2]
[354973286,1740851450815,-3224.5,0.00026023,2]
[354973287,1740851450824,-500.0,0.00026023,2]
[354973288,1740851450834,-500.0,0.00026023,2]
[354973289,1740851450844,-500.0,0.00026023,2]
[354973290,1740851450856,-453.94059428,0.00026023,2]
[354973291,1740851450866,-2067.47,0.00026023,2]
[354973292,1740851450876,-500.0,0.00026023,2]
[354973293,1740851450886,-2213.69,0.00026023,2]
[354973294,1740851450897,-500.0,0.00026023,2]
[354973295,1740851450907,-151.0,0.00026023,7]
[354973296,1740851450917,-610.413976,0.00026023,7]
[354973297,1740851450928,-500.0,0.00026023,2]
[354973298,1740851450938,-610.413976,0.00026023,7]
[354973299,1740851450948,-500.0,0.00026023,2]
[354973300,1740851450957,-500.0,0.00026023,2]
[354973301,1740851450967,-500.0,0.00026023,2]
[354973302,1740851450978,-598.121572,0.00026023,7]
[354973303,1740851450988,-509.00241629,0.00026023,2]
[354973304,1740851450998,-500.0,0.00026023,2]
[354973305,1740851451008,-1684.130461,0.00026023,7]
[354973306,1740851451018,-783.39,0.00026023,2]
[354973307,1740851451028,-598.121572,0.00026023,7]
[354973308,1740851451038,-1684.130461,0.00026023,7]
[354973309,1740851451047,-447.37599512,0.00026023,2]
[354973310,1740851451057,-500.0,0.00026023,2]
[354973311,1740851451067,-580.29,0.00026023,2]
[354973312,1740851451077,-608.55,0.00026023,2]
[354973313,1740851451087,-500.0,0.00026023,2]
[354973314,1740851451097,-500.0,0.00026023,2]
[354973315,1740851451107,-158.205466,0.00026023,7]
[354973316,1740851451117,-1079.07,0.00026023,2]
[354973317,1740851451126,-158.205466,0.00026023,7]
[354973318,1740851451136,-500.0,0.00026023,2]
[354973319,1740851451146,-562.95,0.00026023,2]
[354973320,1740851451156,-616.26,0.00026023,2]
[354973321,1740851451166,-659.72,0.00026023,2]
[354973322,1740851451176,-500.0,0.00026023,2]
[354973323,1740851451187,-500.0,0.00026023,2]
[354973324,1740851451197,-500.0,0.00026023,2]
[354973325,1740851451207,-1224.22,0.00026023,2]
[354973326,1740851451216,-151.0,0.00026023,7]
[354973327,1740851451227,-1211.078254,0.00026023,7]
[354973328,1740851451238,-500.0,0.00026023,2]
[354973329,1740851451248,-395.2626657,0.00026023,2]
[354973330,1740851451258,-500.0,0.00026023,2]
[354973331,1740851451269,-500.0,0.00026023,2]
[354973332,1740851451278,-1211.078254,0.00026023,7]
[354973333,1740851451288,-657.69,0.00026023,2]
[354973334,1740851451298,-500.0,0.00026023,2]
[354973335,1740851451308,-579.99,0.00026023,2]
[354973336,1740851451318,-285.148233,0.00026023,7]
[354973337,1740851451328,-500.0,0.00026023,2]
[354973338,1740851451338,-500.0,0.00026023,2]
[354973339,1740851451348,-285.148233,0.00026023,7]
[354973340,1740851451358,-2972.26,0.00026023,2]
[354973341,1740851451368,-736.79,0.00026023,2]
[354973342,1740851451378,-151.0,0.00026023,7]
[354973343,1740851451387,-500.0,0.00026023,2]
[354973344,1740851451397,-500.0,0.00026023,2]
[354973345,1740851451407,-500.0,0.00026023,2]
[354973346,1740851451416,-151.0,0.00026023,7]
[354973347,1740851451427,-500.0,0.00026023,2]
[354973348,1740851451437,-500.0,0.00026023,2]
[354973349,1740851451447,-530.68,0.00026023,2]
[354973350,1740851451456,-500.0,0.00026023,2]
[354973351,1740851451466,-603.09,0.00026023,2]
[354973352,1740851451476,-500.0,0.00026023,2]
[354973353,1740851451486,-500.0,0.00026023,2]
[354973354,1740851451496,-500.0,0.00026023,2]
[354973355,1740851451506,-500.0,0.00026023,2]
[354973356,1740851451515,-619.901238,0.00026023,7]
[354973357,1740851451526,-500.0,0.00026023,2]
[354973358,1740851451535,-542.76,0.00026023,2]
[354973359,1740851451545,-1009.99,0.00026023,2]
[354973360,1740851451555,-619.901238,0.00026023,7]
[354973361,1740851451564,-500.0,0.00026023,2]
[354973362,1740851451574,-913.72,0.00026023,2]
[354973363,1740851451584,-408.845533,0.00026023,7]
[354973364,1740851451594,-500.0,0.00026023,2]
[354973365,1740851451603,-500.0,0.00026023,2]
[354973366,1740851451613,-408.845533,0.00026023,7]
[354973367,1740851451623,-3435.866604,0.00026023,7]
[354973368,1740851451633,-500.0,0.00026023,2]
[354973369,1740851451643,-500.0,0.00026023,2]
[354973370,1740851451654,-500.0,0.00026023,2]
[354973371,1740851451664,-500.0,0.00026023,2]
[354973372,1740851451674,-3435.866604,0.00026023,7]
[354973373,1740851451684,-500.0,0.00026023,2]
[354973374,1740851451694,-500.0,0.00026023,2]
[354973375,1740851451704,-500.0,0.00026023,2]
[354973376,1740851451714,-500.0,0.00026023,2]
[354973377,1740851451724,-500.0,0.00026023,2]
[354973378,1740851451734,-1174.31,0.00026023,2]
[354973379,1740851451744,-500.0,0.00026023,2]
[354973380,1740851451754,-883.18,0.00026023,2]
[354973381,1740851451765,-504.51657921,0.00026023,2]
[354973382,1740851451775,-151.89046714,0.00026023,2]
[354973383,1740851451785,-196.311428,0.00026023,7]
[354973384,1740851451794,-196.311428,0.00026023,7]
[354973385,1740851451804,-500.0,0.00026023,2]
[354973386,1740851451815,-500.0,0.00026023,2]
[354973387,1740851451825,-829.05,0.00026023,2]
[354973388,1740851451836,-663.57,0.00026023,2]
[354973389,1740851451847,-1506.85,0.00026023,2]
[354973390,1740851451858,-500.0,0.00026023,2]
[354973391,1740851451868,-1958.58,0.00026023,2]
[354973392,1740851451878,-1262.39,0.00026023,2]
[354973393,1740851451889,-500.0,0.00026023,2]
[354973394,1740851451899,-5774.3,0.00026023,2]
[354973395,1740851451910,-500.0,0.00026023,2]
[354973396,1740851451920,-627.06,0.00026023,2]
[354973397,1740851451932,-500.0,0.00026023,2]
[354973398,1740851451942,-19624.61182001,0.00026023,7]
[354973399,1740851451952,-410.16438589,0.00026023,2]
[354973400,1740851451962,-500.0,0.00026023,2]
[354973401,1740851451972,-160.0,0.00026023,7]
[354973402,1740851451982,-500.0,0.00026023,2]
[354973403,1740851451992,-1512.17,0.00026023,2]
[354973404,1740851452002,-500.0,0.00026024,2]
[354973405,1740851452013,-500.0,0.00026024,2]
[354973406,1740851452023,-500.0,0.00026024,2]
[354973407,1740851452034,-500.0,0.00026024,2]
[354973408,1740851452044,-623.5975962,0.00026024,2]
[354973409,1740851452055,-558.2776123,0.00026024,2]
[354973410,1740851452065,-500.0,0.00026024,2]
[354973411,1740851452076,-460.40740218,0.00026024,2]
[354973412,1740851452086,-501.38460616,0.00026024,2]
[354973413,1740851452097,-500.0,0.00026024,2]
[354973414,1740851452108,-220.04247511,0.00026024,2]
[354973415,1740851452118,-586.15075589,0.00026024,2]
[354973416,1740851452129,-505.40828293,0.00026024,2]
[354973417,1740851452139,-284.45236407,0.00026024,2]
[354973418,1740851452150,-500.0,0.00026024,2]
[354973419,1740851452160,-500.0,0.00026024,2]
[354973420,1740851452171,-500.0,0.00026024,2]
[354973421,1740851452182,-500.0,0.00026024,2]
[354973422,1740851452192,-500.0,0.00026024,2]
[354973423,1740851452203,-500.0,0.00026024,2]
[354973424,1740851452214,-736.59,0.00026024,2]
[354973425,1740851452225,-500.0,0.00026024,2]
[354973426,1740851452237,-500.0,0.00026024,2]
[354973427,1740851452247,-654.89,0.00026024,2]
[354973428,1740851452258,-500.0,0.00026024,2]
[354973429,1740851452268,-500.0,0.00026024,2]
[354973430,1740851452279,-500.0,0.00026024,2]
[354973431,1740851452289,-500.0,0.00026024,2]
[354973432,1740851452300,-500.0,0.00026024,2]
[354973433,1740851452311,-500.0,0.00026024,2]
[354973434,1740851452321,-500.0,0.00026024,2]
[354973435,1740851452331,-500.0,0.00026024,2]
[354973436,1740851452342,-500.0,0.00026024,2]
[354973437,1740851452352,-1370.44,0.00026024,2]
[354973438,1740851452363,-1864.2,0.00026024,2]
[354973439,1740851452375,-725.73,0.00026024,2]
[354973440,1740851452386,-804.16,0.00026024,2]
[354973441,1740851452396,-658.74,0.00026024,2]
[354973442,1740851452407,-1611.3,0.00026024,2]
[354973443,1740851452417,-500.0,0.00026024,2]
[354973444,1740851452427,-500.0,0.00026024,2]
[354973445,1740851452437,-558.88,0.00026024,2]
[354973446,1740851452448,-2975.03,0.00026024,2]
[354973447,1740851452458,-1800.75,0.00026024,2]
[354973448,1740851452469,-500.0,0.00026024,2]
[354973449,1740851452480,-151.0,0.00026024,7]
[354973450,1740851452490,-151.849832,0.00026024,7]
[354973451,1740851452501,-151.0,0.00026024,7]
[354973452,1740851452511,-151.0,0.00026024,7]
[354973453,1740851452522,-151.0,0.00026024,7]
[354973454,1740851452532,-512.51198397,0.00026025,2]
[354973455,1740851452542,-500.0,0.00026025,2]
[354973456,1740851452554,-500.0,0.00026025,2]
[354973457,1740851452564,-500.0,0.00026025,2]
[354973458,1740851452574,-500.0,0.00026025,2]
[354973459,1740851452584,-583.48,0.00026025,2]
[354973460,1740851452594,-150.86461303,0.00026073,2]
[354973461,1740851452605,-503.01819855,0.00026073,2]
[354973462,1740851452615,-500.0,0.00026073,2]
[354973463,1740851452625,-500.0,0.00026073,2]
[354973464,1740851452635,-160.0,0.00026073,2]
[354973465,1740851452645,-500.0,0.00026073,2]
[354973466,1740851452655,-500.0,0.00026073,2]
[354973467,1740851452665,-420.0,0.00026073,2]
[354973468,1740851452675,-500.0,0.00026073,2]
[354973469,1740851452686,-500.0,0.00026073,2]
[354973470,1740851452696,-500.0,0.00026073,2]
[354973471,1740851452706,-500.0,0.00026073,2]
[354973472,1740851452716,-151.0,0.000261,16]
[354973473,1740851452727,-80564.91242656,0.00026101,9]
[354973474,1740851452737,-500.0,0.00026101,2]
[354973475,1740851452747,-500.0,0.00026101,2]
[354973476,1740851452758,-500.0,0.00026101,2]
[354973477,1740851452767,-1041.17,0.00026101,2]
[354973478,1740851452777,-500.0,0.00026101,2]
[354973479,1740851452788,-500.0,0.00026101,2]
[354973480,1740851452798,-500.0,0.00026101,2]
[354973481,1740851452808,-797.91,0.00026101,2]
[354973482,1740851452818,-500.0,0.00026101,2]
[354973483,1740851452828,-500.0,0.00026101,2]
[354973484,1740851452838,-500.0,0.00026101,2]
[354973485,1740851452851,-540.04,0.00026101,2]
[354973486,1740851452860,-500.0,0.00026101,2]
[354973487,1740851452871,-500.0,0.00026101,2]
[354973488,1740851452881,-500.0,0.00026101,2]
[354973489,1740851452894,-513.87068856,0.00026101,2]
[354973490,1740851452904,-500.0,0.00026101,2]
[354973491,1740851452914,-268.19323666,0.00026101,2]
[354973492,1740851452926,-500.0,0.00026101,2]
[354973493,1740851452936,-465.80094179,0.00026101,2]
[354973494,1740851452946,-500.0,0.00026101,2]
[354973495,1740851452956,-500.0,0.00026101,2]
[354973496,1740851452967,-812.79,0.00026101,2]
[354973497,1740851452978,-500.0,0.00026101,2]
[354973498,1740851452989,-200.0,0.00026101,2]
[354973499,1740851453220,-500.0,0.00026101,2]
[354973500,1740851453231,-500.0,0.00026101,2]
[354973501,1740851453241,-500.0,0.00026101,2]
[354973502,1740851453251,-500.0,0.00026101,2]
[354973503,1740851453261,-500.0,0.00026101,2]
[354973504,1740851453271,-500.0,0.00026101,2]
[354973505,1740851453281,-500.0,0.00026101,2]
[354973506,1740851453291,-500.0,0.00026101,2]
[354973507,1740851453301,-715.19,0.00026101,2]
[354973508,1740851453312,-500.0,0.00026101,2]
[354973509,1740851453322,-500.0,0.00026101,2]
[354973510,1740851453332,-9466.81,0.00026101,2]
[354973511,1740851453342,-617.75403216,0.00026101,2]
[354973512,1740851453352,-500.0,0.00026101,2]
[354973513,1740851453361,-500.0,0.00026101,2]
[354973514,1740851453371,-500.0,0.00026101,2]
[354973515,1740851453380,-500.0,0.00026101,2]
[354973516,1740851453390,-2433.77,0.00026101,2]
[354973517,1740851453400,-587.55,0.00026101,2]
[354973518,1740851453410,-723.83,0.00026101,2]
[354973519,1740851453419,-1014.38,0.00026101,5]
[354973520,1740851453429,-500.0,0.00026101,2]
[354973521,1740851453439,-1264.94,0.00026101,2]
[354973522,1740851453448,-500.0,0.00026101,2]
[354973523,1740851453457,-829.35,0.00026101,2]
[354973524,1740851453467,-250.80359435,0.00026101,2]
[354973525,1740851453477,-500.0,0.00026101,2]
[354973526,1740851453488,-816.87,0.00026101,2]
[354973527,1740851453498,-626.31,0.00026101,2]
[354973528,1740851453508,-1171.5,0.00026101,2]
[354973529,1740851453518,-500.0,0.00026101,2]
[354973530,1740851453529,-500.0,0.00026101,2]
[354973531,1740851453538,-523.00042399,0.00026101,2]
[354973532,1740851453548,-500.0,0.00026101,2]
[354973533,1740851453558,-864.27,0.00026101,2]
[354973534,1740851453568,-500.0,0.00026101,2]
[354973535,1740851453578,-514.8,0.00026101,2]
[354973536,1740851453588,-500.0,0.00026101,2]
[354973537,1740851453598,-500.0,0.00026101,2]
[354973538,1740851453607,-500.0,0.00026101,2]
[354973539,1740851453617,-1322.91,0.00026101,2]
[354973540,1740851453627,-1733.35,0.00026101,2]
[354973541,1740851453637,-96494.03774313,0.00026102,9]
[354973542,1740851453648,-500.0,0.00026102,2]
[354973543,1740851453657,-500.0,0.00026102,2]
[354973544,1740851453667,-500.0,0.00026102,2]
[354973545,1740851453677,-530.54,0.00026102,2]
[354973546,1740851453687,-752.69,0.00026102,2]
[354973547,1740851453697,-504.09446363,0.00026102,2]